{"text_format":"1","workbook":"xlsx","n_sheets":1,"sheets":["AUTOLIQUIDACION"],"not_rendered":{"charts":0,"images":1,"macros":1,"external_links":0,"defined_names":0,"comments":1,"pivot_tables":0},"unopened":[],"bounds":{"document_bytes":16777216,"sheet_cells":100000,"rows_first":2000,"rows_last":500,"rows_between":2000,"halvings":0,"cell_chars":16384,"cell_head_chars":4096},"cells_cut":0,"cells_raw":0,"read":"whole","date_system":"1900"}

{"sheet":"AUTOLIQUIDACION","index":0,"n_rows":33,"n_cols":19,"rows_kept":33,"cut":false,"hidden":false,"merged":[[18,12,18,13],[32,0,32,5],[2,4,2,9],[18,9,18,11],[8,9,8,15],[13,2,13,7],[15,10,15,13],[11,10,11,13],[12,10,12,13],[11,9,13,9],[26,0,27,11],[13,10,13,13],[14,2,14,4],[14,10,14,13],[9,15,10,15],[16,10,16,13]]}
[]
[]
[null,null,null,null,"DOC. 3 . AUTOLIQUIDACION SALAS DESPIECE"]
[]
[]
["DESPIECE",null,"Nº TONELADAS","TASA"]
["VACUNO, PORCINO, EQUIDOS, OVINO Y CAPRINO",2,null,{"$f":"C7*B7","v":0}]
["AVES DE CORRAL Y CONEJOS DE GRANJA",1.5,null,{"$f":"C8*B8","v":0},null,"TOTAL TASA BRUTA",{"$f":"SUM(D7:D11)","v":0}]
["CAZA MENOR DE PLUMA Y PELO",1.5,null,{"$f":"C9*B9","v":0},null,null,null,null,null,"TOTAL TASAS"]
["CAZA : RATITES",3,null,{"$f":"C10*B10","v":0},null,null,null,null,null,null,null,null,null,null,null,"¿SE PUEDE APLICAR LA REDUCCION?"]
["CAZA: JABALIES Y RUMIANTES",2,null,{"$f":"C11*B11","v":0}]
[null,null,null,null,null,null,null,null,null,"Reduccion tamaño empresa (SÓLO SE ELIGE UNA DE LAS TRES)","A1 MEDIANA EMPRESA",null,null,null,{"$f":"C22","v":0},"SI",null,"TOTAL TASAS",{"$f":"G8","v":0}]
[null,null,null,null,null,null,null,null,null,null,"A2 PEQUEÑA EMPRESA",null,null,null,{"$f":"D22","v":0},"NO",null,"RED. TAMAÑO EMPRESA",{"$f":"IF(P12=\"SI\",O12,0)","v":0}]
[null,null,"OTRAS REDUCCIONES",null,null,null,null,null,null,null,"A3 MICROEMPRESA",null,null,null,{"$f":"E22","v":0},"NO",null,"RED. TAMAÑO EMPRESA",{"$f":"IF(P13=\"SI\",O13,0)","v":0}]
[null,null,"TAMAÑO EMPRESA",null,null,null,null,null,null,"Reducción B","REDUCCION POR UTILIZACION DE METODOS TRADICIONALES DE PRODUCCION (20%)",null,null,null,{"$f":"F22","v":0},"NO",null,"RED. TAMAÑO EMPRESA",0]
["DESPIECE",null,"A1 (10%)","A2 (20%)","A3 (30%)","B (20%)","C (20%)","D1 (20%)",null,"Reducción C","REDUCCION POR INSTALACION EN ZONAS POCO DESARROLLADAS (20%)",null,null,null,{"$f":"G22","v":0},"SI",null,"RED. METODOS TRAD",0]
["VACUNO, PORCINO, EQUIDOS, OVINO Y CAPRINO",2,{"$f":"D7*0.1","v":0},{"$f":"D7*0.2","v":0},{"$f":"D7*0.3","v":0},{"$f":"D7*0.2","v":0},{"$f":"D7*0.2","v":0},{"$f":"D7*(0.2)","v":0},null,"Reducción D1","Cumplimiento Normativa Sanitaria (20%)",null,null,null,{"$f":"H22","v":0},"SI",null,"RED. INSTALACION",0]
["AVES DE CORRAL Y CONEJOS DE GRANJA",1.5,{"$f":"D8*0.1","v":0},{"$f":"D8*0.2","v":0},{"$f":"D8*0.3","v":0},{"$f":"D8*0.2","v":0},{"$f":"D8*0.2","v":0},{"$f":"D8*(0.2)","v":0},null,null,null,null,null,null,null,null,null,"RED. NORMATIVA",0]
["CAZA MENOR DE PLUMA Y PELO",1.5,0,0,0,0,0,0,null,"TOTAL A PAGAR",null,null,{"$f":"S12-S21","v":0}]
["CAZA : RATITES",3,0,0,0,0,0,0,null,null,null,null,null,null,null,null,null,"SUMA REDUCCIONES",{"$f":"S13+S14+S15+S16+S17+S18","v":0}]
["CAZA: JABALIES Y RUMIANTES",2,0,0,0,0,0,0,null,null,null,null,null,null,null,null,null,"TOTAL CON LIMITE",{"$f":"IF(S20>(S12*0.8),S12*0.8,S20)","v":0}]
[null,"TOTAL",{"$f":"SUM(C17:C21)","v":0},{"$f":"SUM(D17:D21)","v":0},0,0,0,0]
[]
["INSTRUCCIONES PARA RELLENAR DOCUMENTO 3"]
["1.- Los datos de las reducciones los calcula la tabla automáticamente, al igual que la tabla de las otras reducciones."]
["2.- En la tabla “total tasas”, se escribirá en la columna “¿Se puede aplicar la reducción?” el dato SI o NO (en mayúsculas) según se tenga derecho a las otras reducciones"]
["SE ELEGIRAN LAS REDUCCIONES QUE CUMPLAN LO INDICADO EN LA LEY 2/2021, CON UN TOPE MAXIMO DE REDUCCIÓN DEL 80%"]
[]
["INSTRUCCIONES"]
["Lo primero, cuando se abre el documento excel, sale un mensaje para habilitar macros (hacerlo)"]
["Pasando el puntero del ratón por los encabezados de los conceptos, se ve la descripción de los mismos."]
["Solo hay que meter valores en los campos de color verde si es necesario"]
["Por un lado el número de animales sacrificados, y por el otro, escribir SI o NO (en mayúsculas), si se tiene o no tiene derecho a las reducciones tipo A1, A2 o A3, y tipo B, C y D1"]